[Event "December 19 Late 2023"]
[Site "https://www.chess.com"]
[Date "2023.12.19"]
[Round "1"]
[White "Bortnyk, Olexandr"]
[Black "Medeiros Jr, Francisco De Assis"]
[Result "1/2-1/2"]
[Board "17"]
[TimeControl "180+1"]
[WhiteFideId "14120828"]
[BlackFideId "2114267"]
[WhiteElo "2731"]
[BlackElo "2022"]
[WhiteTeam "UKR"]
[BlackTeam "BRA"]
[WhiteClock "0:00:03"]
[BlackClock "0:00:15"]

1. e4 {[%clk 0:02:58]}  e5 {[%clk 0:02:52]} 2. Nf3 {[%clk 0:02:51]}  Nc6 {[%clk 0:02:52]} 3. Bb5 {[%clk 0:02:50]}  Nf6 {[%clk 0:02:52]} 4. Nc3 {[%clk 0:02:50]}  d6 {[%clk 0:02:45]} 5. d4 {[%clk 0:02:48]}  exd4 {[%clk 0:02:45]} 6. Nxd4 {[%clk 0:02:46]}  Bd7 {[%clk 0:02:45]} 7. O-O {[%clk 0:02:46]}  Be7 {[%clk 0:02:44]} 8. Bxc6 {[%clk 0:02:44]}  bxc6 {[%clk 0:02:44]} 9. Bg5 {[%clk 0:02:42]}  O-O {[%clk 0:02:37]} 10. Re1 {[%clk 0:02:41]}  h6 {[%clk 0:02:38]} 11. Bh4 {[%clk 0:02:40]}  Re8 {[%clk 0:02:36]} 12. h3 {[%clk 0:02:34]}  Rb8 {[%clk 0:02:33]} 13. b3 {[%clk 0:02:32]}  Bf8 {[%clk 0:02:34]} 14. Qf3 {[%clk 0:02:31]}  g5 {[%clk 0:02:29]} 15. Bg3 {[%clk 0:02:25]}  Bg7 {[%clk 0:02:30]} 16. Nf5 {[%clk 0:02:21]}  Bxf5 {[%clk 0:02:25]} 17. exf5 {[%clk 0:02:22]}  Nd5 {[%clk 0:02:12]} 18. Nxd5 {[%clk 0:02:10]}  Bxa1 {[%clk 0:02:13]} 19. Rxa1 {[%clk 0:02:01]}  cxd5 {[%clk 0:02:12]} 20. Qxd5 {[%clk 0:02:02]}  Qf6 {[%clk 0:02:09]} 21. Rd1 {[%clk 0:02:02]}  Re7 {[%clk 0:01:59]} 22. f4 {[%clk 0:01:40]}  Rbe8 {[%clk 0:01:51]} 23. fxg5 {[%clk 0:01:39]}  hxg5 {[%clk 0:01:52]} 24. Rd4 {[%clk 0:01:25]}  Re3 {[%clk 0:01:41]} 25. Rg4 {[%clk 0:01:23]}  c6 {[%clk 0:01:09]} 26. Qxd6 {[%clk 0:00:51]}  Qxf5 {[%clk 0:01:04]} 27. Qxc6 {[%clk 0:00:39]}  Re2 {[%clk 0:00:58]} 28. Kh2 {[%clk 0:00:34]}  Kg7 {[%clk 0:00:54]} 29. Qc7 {[%clk 0:00:24]}  R8e7 {[%clk 0:00:53]} 30. Qc3+ {[%clk 0:00:24]}  Kh7 {[%clk 0:00:46]} 31. Bh4 {[%clk 0:00:18]}  R2e3 {[%clk 0:00:44]} 32. Qd2 {[%clk 0:00:01]}  Qe5+ {[%clk 0:00:45]} 33. Bg3 {[%clk 0:00:01]}  Qf5 {[%clk 0:00:33]} 34. Qf2 {[%clk 0:00:02]}  Qxf2 {[%clk 0:00:29]} 35. Bxf2 {[%clk 0:00:03]}  Re2 {[%clk 0:00:29]} 36. Bc5 {[%clk 0:00:03]}  R7e5 {[%clk 0:00:25]} 37. Bxa7 {[%clk 0:00:04]}  Rxc2 {[%clk 0:00:23]} 38. a4 {[%clk 0:00:05]}  Ree2 {[%clk 0:00:18]} 39. Rxg5 {[%clk 0:00:05]}  Rb2 {[%clk 0:00:17]} 40. Rg3 {[%clk 0:00:04]}  f5 {[%clk 0:00:16]} 41. Bd4 {[%clk 0:00:05]}  Rbc2 {[%clk 0:00:15]} 42. Rg7+ {[%clk 0:00:03]}  Kh6 {[%clk 0:00:15]} 43. Rg8 {[%clk 0:00:03]}  f4 {[%clk 0:00:15]} 44. Rh8+ {[%clk 0:00:01]}  Kg6 {[%clk 0:00:15]} 45. Rg8+ {[%clk 0:00:02]}  Kh6 {[%clk 0:00:15]} 46. Rh8+ {[%clk 0:00:03]}  Kg6 {[%clk 0:00:14]} 47. Rg8+ {[%clk 0:00:03]}  Kh6 {[%clk 0:00:15]} 1/2-1/2

[Event "December 19 Late 2023"]
[Site "https://www.chess.com"]
[Date "2023.12.19"]
[Round "1"]
[White "Reprintsev, Alexander"]
[Black "Makarian, Rudik"]
[Result "1-0"]
[Board "18"]
[TimeControl "180+1"]
[WhiteFideId "14100541"]
[BlackFideId "44105681"]
[WhiteElo "2229"]
[BlackElo "2540"]
[WhiteTeam "UKR"]
[BlackTeam "FID"]
[WhiteClock "0:00:56"]
[BlackClock "0:00:21"]

1. e4 {[%clk 0:03:00]}  c5 {[%clk 0:02:59]} 2. b3 {[%clk 0:03:00]}  g6 {[%clk 0:02:57]} 3. Bb2 {[%clk 0:03:00]}  Nf6 {[%clk 0:02:58]} 4. e5 {[%clk 0:02:59]}  Nd5 {[%clk 0:02:59]} 5. Nc3 {[%clk 0:02:59]}  Nxc3 {[%clk 0:02:55]} 6. dxc3 {[%clk 0:02:59]}  Nc6 {[%clk 0:02:53]} 7. Qd5 {[%clk 0:02:55]}  Bg7 {[%clk 0:02:45]} 8. Nf3 {[%clk 0:02:46]}  b6 {[%clk 0:02:45]} 9. O-O-O {[%clk 0:02:44]}  Qc7 {[%clk 0:02:41]} 10. c4 {[%clk 0:02:42]}  Bb7 {[%clk 0:02:41]} 11. Qd2 {[%clk 0:02:34]}  O-O {[%clk 0:02:09]} 12. Qe3 {[%clk 0:02:23]}  Nb4 {[%clk 0:02:06]} 13. a3 {[%clk 0:01:58]}  Bxf3 {[%clk 0:02:06]} 14. gxf3 {[%clk 0:01:53]}  Nc6 {[%clk 0:02:07]} 15. f4 {[%clk 0:01:53]}  e6 {[%clk 0:02:03]} 16. h4 {[%clk 0:01:50]}  Ne7 {[%clk 0:01:57]} 17. h5 {[%clk 0:01:48]}  Nf5 {[%clk 0:01:56]} 18. Qh3 {[%clk 0:01:46]}  Rfd8 {[%clk 0:01:36]} 19. hxg6 {[%clk 0:01:45]}  hxg6 {[%clk 0:01:36]} 20. Bg2 {[%clk 0:01:45]}  Rab8 {[%clk 0:01:35]} 21. Be4 {[%clk 0:01:44]}  b5 {[%clk 0:01:33]} 22. Bxf5 {[%clk 0:01:44]}  bxc4 {[%clk 0:01:14]} 23. Bxg6 {[%clk 0:01:34]}  fxg6 {[%clk 0:00:55]} 24. Rdg1 {[%clk 0:01:34]}  d5 {[%clk 0:00:44]} 25. Rxg6 {[%clk 0:01:25]}  Kf8 {[%clk 0:00:40]} 26. Rhg1 {[%clk 0:01:22]}  Rd7 {[%clk 0:00:35]} 27. Qxe6 {[%clk 0:01:21]}  d4 {[%clk 0:00:21]} 28. Rf6+ {[%clk 0:01:18]}  Rf7 {[%clk 0:00:21]} 29. Rxf7+ {[%clk 0:01:17]}  Qxf7 {[%clk 0:00:22]} 30. Qd6+ {[%clk 0:01:16]}  Qe7 {[%clk 0:00:21]} 31. Qxb8+ {[%clk 0:01:14]}  Kf7 {[%clk 0:00:22]} 32. Qd6 {[%clk 0:01:10]}  Qxd6 {[%clk 0:00:20]} 33. exd6 {[%clk 0:01:10]}  c3 {[%clk 0:00:21]} 34. Rxg7+ {[%clk 0:00:56]}  Kxg7 {[%clk 0:00:21]} 1-0

[Event "December 19 Late 2023"]
[Site "https://www.chess.com"]
[Date "2023.12.19"]
[Round "1"]
[White "Grigoriants, Sergey"]
[Black "Nilsson, Joakim"]
[Result "1-0"]
[Board "23"]
[TimeControl "180+1"]
[WhiteFideId "4130804"]
[BlackFideId "1723383"]
[WhiteElo "2532"]
[BlackElo "2143"]
[WhiteTeam "HUN"]
[BlackTeam "SWE"]
[WhiteClock "0:00:13"]
[BlackClock "0:00:12"]

1. d4 {[%clk 0:02:54]}  Nf6 {[%clk 0:02:59]} 2. c4 {[%clk 0:02:53]}  e6 {[%clk 0:02:59]} 3. Bf4 {[%clk 0:02:50]}  Bb4+ {[%clk 0:02:54]} 4. Nd2 {[%clk 0:02:48]}  O-O {[%clk 0:02:53]} 5. a3 {[%clk 0:02:47]}  Bxd2+ {[%clk 0:02:53]} 6. Qxd2 {[%clk 0:02:48]}  b6 {[%clk 0:02:47]} 7. Nf3 {[%clk 0:02:26]}  Bb7 {[%clk 0:02:46]} 8. e3 {[%clk 0:02:25]}  d6 {[%clk 0:02:39]} 9. h3 {[%clk 0:02:24]}  Nbd7 {[%clk 0:02:38]} 10. Be2 {[%clk 0:02:23]}  Qe7 {[%clk 0:02:38]} 11. O-O {[%clk 0:02:22]}  e5 {[%clk 0:02:37]} 12. Bh2 {[%clk 0:02:22]}  a5 {[%clk 0:02:32]} 13. b4 {[%clk 0:02:21]}  h6 {[%clk 0:02:13]} 14. Qb2 {[%clk 0:02:16]}  Rfe8 {[%clk 0:02:08]} 15. dxe5 {[%clk 0:02:09]}  Nxe5 {[%clk 0:01:54]} 16. Nxe5 {[%clk 0:02:03]}  dxe5 {[%clk 0:01:54]} 17. Rfd1 {[%clk 0:02:03]}  Ne4 {[%clk 0:01:25]} 18. Bf3 {[%clk 0:01:59]}  Nd6 {[%clk 0:01:25]} 19. Bxb7 {[%clk 0:01:41]}  Nxb7 {[%clk 0:01:25]} 20. Qc3 {[%clk 0:01:26]}  Nd6 {[%clk 0:01:23]} 21. Rac1 {[%clk 0:01:17]}  axb4 {[%clk 0:01:20]} 22. axb4 {[%clk 0:01:17]}  Ra2 {[%clk 0:01:16]} 23. Rc2 {[%clk 0:01:03]}  Rea8 {[%clk 0:00:57]} 24. Rxa2 {[%clk 0:01:00]}  Rxa2 {[%clk 0:00:56]} 25. Qxe5 {[%clk 0:01:00]}  Qxe5 {[%clk 0:00:48]} 26. Bxe5 {[%clk 0:01:01]}  Nxc4 {[%clk 0:00:47]} 27. Bxc7 {[%clk 0:01:01]}  Rb2 {[%clk 0:00:47]} 28. Rd8+ {[%clk 0:00:46]}  Kh7 {[%clk 0:00:47]} 29. Rd7 {[%clk 0:00:47]}  Kg6 {[%clk 0:00:47]} 30. Bxb6 {[%clk 0:00:45]}  Rxb4 {[%clk 0:00:37]} 31. Ba7 {[%clk 0:00:43]}  Rb1+ {[%clk 0:00:31]} 32. Kh2 {[%clk 0:00:42]}  Rb2 {[%clk 0:00:31]} 33. Kg3 {[%clk 0:00:38]}  Nd2 {[%clk 0:00:30]} 34. Rd4 {[%clk 0:00:19]}  Nf1+ {[%clk 0:00:29]} 35. Kf3 {[%clk 0:00:17]}  Nd2+ {[%clk 0:00:20]} 36. Kf4 {[%clk 0:00:17]}  Nf1 {[%clk 0:00:19]} 37. Rd6+ {[%clk 0:00:17]}  Kh7 {[%clk 0:00:19]} 38. e4 {[%clk 0:00:18]}  f6 {[%clk 0:00:17]} 39. h4 {[%clk 0:00:17]}  Nd2 {[%clk 0:00:16]} 40. f3 {[%clk 0:00:17]}  Nc4 {[%clk 0:00:16]} 41. Rd4 {[%clk 0:00:16]}  Ne5 {[%clk 0:00:16]} 42. Kg3 {[%clk 0:00:16]}  h5 {[%clk 0:00:15]} 43. Bc5 {[%clk 0:00:15]}  Rc2 {[%clk 0:00:15]} 44. Bd6 {[%clk 0:00:15]}  Nc4 {[%clk 0:00:15]} 45. Bf4 {[%clk 0:00:14]}  Kg6 {[%clk 0:00:16]} 46. Rd5 {[%clk 0:00:14]}  Kf7 {[%clk 0:00:15]} 47. Rxh5 {[%clk 0:00:13]}  Rb2 {[%clk 0:00:14]} 48. Rc5 {[%clk 0:00:13]}  Nd6 {[%clk 0:00:12]} 49. Bxd6 {[%clk 0:00:13]} 1-0

[Event "December 19 Late 2023"]
[Site "https://www.chess.com"]
[Date "2023.12.19"]
[Round "1"]
[White "Sjugirov, Sanan"]
[Black "Slade, Theodore"]
[Result "1-0"]
[Board "25"]
[TimeControl "180+1"]
[WhiteFideId "4189302"]
[BlackFideId "426547"]
[WhiteElo "2569"]
[BlackElo "1964"]
[WhiteTeam "HUN"]
[BlackTeam "ENG"]
[WhiteClock "0:01:47"]
[BlackClock "0:00:00"]

1. e4 {[%clk 0:03:00]}  e5 {[%clk 0:03:00]} 2. Nf3 {[%clk 0:03:01]}  Nc6 {[%clk 0:03:00]} 3. Bb5 {[%clk 0:03:01]}  Nf6 {[%clk 0:03:01]} 4. d3 {[%clk 0:03:02]}  Bc5 {[%clk 0:03:01]} 5. c3 {[%clk 0:03:00]}  O-O {[%clk 0:03:01]} 6. O-O {[%clk 0:03:00]}  d6 {[%clk 0:03:01]} 7. Bg5 {[%clk 0:03:00]}  h6 {[%clk 0:02:58]} 8. Bh4 {[%clk 0:03:00]}  g5 {[%clk 0:02:47]} 9. Bg3 {[%clk 0:03:00]}  Qe7 {[%clk 0:02:31]} 10. Nbd2 {[%clk 0:03:00]}  Kg7 {[%clk 0:02:21]} 11. a4 {[%clk 0:02:59]}  a6 {[%clk 0:02:18]} 12. Bxc6 {[%clk 0:02:59]}  bxc6 {[%clk 0:02:19]} 13. d4 {[%clk 0:02:58]}  exd4 {[%clk 0:02:18]} 14. cxd4 {[%clk 0:02:59]}  Bb4 {[%clk 0:02:16]} 15. e5 {[%clk 0:02:59]}  Nh5 {[%clk 0:02:09]} 16. Re1 {[%clk 0:02:48]}  Nxg3 {[%clk 0:02:06]} 17. hxg3 {[%clk 0:02:49]}  Bg4 {[%clk 0:02:01]} 18. Re3 {[%clk 0:02:44]}  Bxd2 {[%clk 0:01:45]} 19. Qxd2 {[%clk 0:02:44]}  Bxf3 {[%clk 0:01:46]} 20. gxf3 {[%clk 0:02:44]}  Qd7 {[%clk 0:01:39]} 21. Qc3 {[%clk 0:02:41]}  Kg8 {[%clk 0:01:32]} 22. Rc1 {[%clk 0:02:40]}  Rab8 {[%clk 0:01:28]} 23. Qxc6 {[%clk 0:02:39]}  Qxc6 {[%clk 0:01:26]} 24. Rxc6 {[%clk 0:02:40]}  dxe5 {[%clk 0:01:25]} 25. dxe5 {[%clk 0:02:36]}  Rxb2 {[%clk 0:01:08]} 26. Rxh6 {[%clk 0:02:35]}  Rb6 {[%clk 0:01:00]} 27. Rh5 {[%clk 0:02:27]}  Rg6 {[%clk 0:01:00]} 28. Rc3 {[%clk 0:02:19]}  Re8 {[%clk 0:00:57]} 29. Rc5 {[%clk 0:02:17]}  Ree6 {[%clk 0:00:42]} 30. Kg2 {[%clk 0:02:14]}  Rb6 {[%clk 0:00:22]} 31. e6 {[%clk 0:01:54]}  Rbxe6 {[%clk 0:00:19]} 32. Rhxg5 {[%clk 0:01:54]}  Rxg5 {[%clk 0:00:19]} 33. Rxg5+ {[%clk 0:01:55]}  Kf8 {[%clk 0:00:19]} 34. Rc5 {[%clk 0:01:55]}  Rb6 {[%clk 0:00:13]} 35. a5 {[%clk 0:01:48]}  Rd6 {[%clk 0:00:09]} 36. f4 {[%clk 0:01:46]}  c6 {[%clk 0:00:10]} 37. Kf3 {[%clk 0:01:46]}  Rd5 {[%clk 0:00:08]} 38. Rxd5 {[%clk 0:01:43]}  cxd5 {[%clk 0:00:09]} 39. Ke3 {[%clk 0:01:43]}  Ke7 {[%clk 0:00:09]} 40. Kd4 {[%clk 0:01:43]}  Kd6 {[%clk 0:00:10]} 41. g4 {[%clk 0:01:43]}  Kc6 {[%clk 0:00:06]} 42. g5 {[%clk 0:01:43]}  Kb5 {[%clk 0:00:04]} 43. f5 {[%clk 0:01:43]}  Kxa5 {[%clk 0:00:04]} 44. g6 {[%clk 0:01:44]}  fxg6 {[%clk 0:00:05]} 45. fxg6 {[%clk 0:01:45]}  Kb4 {[%clk 0:00:06]} 46. g7 {[%clk 0:01:46]}  a5 {[%clk 0:00:06]} 47. g8=Q {[%clk 0:01:46]}  a4 {[%clk 0:00:07]} 48. Qb8+ {[%clk 0:01:47]}  Ka5 {[%clk 0:00:00]} 49. Kc5 {[%clk 0:01:47]} 1-0

[Event "December 19 Late 2023"]
[Site "https://www.chess.com"]
[Date "2023.12.19"]
[Round "1"]
[White "Petukhov, Dmitry"]
[Black "Drygalov, Sergey"]
[Result "0-1"]
[Board "26"]
[TimeControl "180+1"]
[WhiteFideId "4142748"]
[BlackFideId "24171743"]
[WhiteElo "2269"]
[BlackElo "2504"]
[WhiteTeam "RUS"]
[BlackTeam "RUS"]
[WhiteClock "0:00:32"]
[BlackClock "0:02:06"]

1. e4 {[%clk 0:03:00]}  c5 {[%clk 0:02:59]} 2. c3 {[%clk 0:02:59]}  Nf6 {[%clk 0:02:59]} 3. e5 {[%clk 0:02:59]}  Nd5 {[%clk 0:03:00]} 4. d4 {[%clk 0:03:00]}  cxd4 {[%clk 0:03:00]} 5. Nf3 {[%clk 0:03:00]}  e6 {[%clk 0:03:01]} 6. cxd4 {[%clk 0:02:57]}  d6 {[%clk 0:02:59]} 7. Nc3 {[%clk 0:02:57]}  Nxc3 {[%clk 0:02:58]} 8. bxc3 {[%clk 0:02:58]}  Qc7 {[%clk 0:02:58]} 9. Bd2 {[%clk 0:02:57]}  Nd7 {[%clk 0:02:58]} 10. Ng5 {[%clk 0:02:56]}  Be7 {[%clk 0:02:51]} 11. exd6 {[%clk 0:02:53]}  Qxd6 {[%clk 0:02:50]} 12. Bd3 {[%clk 0:02:48]}  Nf6 {[%clk 0:02:48]} 13. O-O {[%clk 0:02:42]}  Bd7 {[%clk 0:02:48]} 14. Be3 {[%clk 0:02:28]}  Bc6 {[%clk 0:02:44]} 15. c4 {[%clk 0:02:27]}  O-O {[%clk 0:02:44]} 16. Rc1 {[%clk 0:02:10]}  Rad8 {[%clk 0:02:42]} 17. Qc2 {[%clk 0:01:48]}  Ng4 {[%clk 0:02:35]} 18. Bxh7+ {[%clk 0:01:34]}  Kh8 {[%clk 0:02:35]} 19. g3 {[%clk 0:01:34]}  Nxe3 {[%clk 0:02:35]} 20. fxe3 {[%clk 0:01:34]}  Bxg5 {[%clk 0:02:34]} 21. Rce1 {[%clk 0:01:29]}  g6 {[%clk 0:02:15]} 22. Bxg6 {[%clk 0:01:24]}  fxg6 {[%clk 0:02:15]} 23. Qxg6 {[%clk 0:01:24]}  Qe7 {[%clk 0:02:15]} 24. e4 {[%clk 0:01:05]}  Qg7 {[%clk 0:02:11]} 25. Qxe6 {[%clk 0:00:51]}  Qxd4+ {[%clk 0:02:07]} 26. Kg2 {[%clk 0:00:50]}  Rxf1 {[%clk 0:02:07]} 27. Kxf1 {[%clk 0:00:32]}  Rf8+ {[%clk 0:02:06]} 0-1

[Event "December 19 Late 2023"]
[Site "https://www.chess.com"]
[Date "2023.12.19"]
[Round "1"]
[White "Tari, Aryan"]
[Black "Gasparyan, David"]
[Result "1-0"]
[Board "29"]
[TimeControl "180+1"]
[WhiteFideId "1510045"]
[BlackFideId "13311980"]
[WhiteElo "2577"]
[BlackElo "2478"]
[WhiteTeam "NOR"]
[BlackTeam "USA"]
[WhiteClock "0:00:01"]
[BlackClock "0:00:04"]

1. a3 {[%clk 0:03:00]}  Nc6 {[%clk 0:02:57]} 2. e4 {[%clk 0:02:58]}  e5 {[%clk 0:02:55]} 3. Nf3 {[%clk 0:02:58]}  d6 {[%clk 0:02:53]} 4. d4 {[%clk 0:02:55]}  exd4 {[%clk 0:02:52]} 5. Nxd4 {[%clk 0:02:56]}  Bd7 {[%clk 0:02:52]} 6. Nc3 {[%clk 0:02:56]}  g6 {[%clk 0:02:47]} 7. Bc4 {[%clk 0:02:53]}  Bg7 {[%clk 0:02:42]} 8. Be3 {[%clk 0:02:52]}  Nf6 {[%clk 0:02:40]} 9. f3 {[%clk 0:02:49]}  Ne5 {[%clk 0:02:36]} 10. Ba2 {[%clk 0:02:48]}  a6 {[%clk 0:02:35]} 11. O-O {[%clk 0:02:47]}  O-O {[%clk 0:02:35]} 12. Qd2 {[%clk 0:02:48]}  Re8 {[%clk 0:02:27]} 13. Rad1 {[%clk 0:02:45]}  Qe7 {[%clk 0:02:00]} 14. Bg5 {[%clk 0:02:37]}  c6 {[%clk 0:02:00]} 15. Nde2 {[%clk 0:02:35]}  Be6 {[%clk 0:01:42]} 16. Bxe6 {[%clk 0:02:28]}  Qxe6 {[%clk 0:01:42]} 17. Qxd6 {[%clk 0:02:06]}  Nc4 {[%clk 0:01:39]} 18. Qxe6 {[%clk 0:02:04]}  Rxe6 {[%clk 0:01:40]} 19. Bc1 {[%clk 0:01:57]}  Rae8 {[%clk 0:01:32]} 20. b3 {[%clk 0:01:56]}  Ne5 {[%clk 0:01:26]} 21. a4 {[%clk 0:01:56]}  Bf8 {[%clk 0:01:23]} 22. Be3 {[%clk 0:01:47]}  Ned7 {[%clk 0:01:17]} 23. Bf2 {[%clk 0:01:44]}  Bb4 {[%clk 0:01:10]} 24. Nb1 {[%clk 0:01:36]}  R6e7 {[%clk 0:01:04]} 25. c3 {[%clk 0:01:24]}  Bc5 {[%clk 0:01:03]} 26. a5 {[%clk 0:01:24]}  Bxf2+ {[%clk 0:01:02]} 27. Kxf2 {[%clk 0:01:25]}  Nc5 {[%clk 0:01:01]} 28. b4 {[%clk 0:01:25]}  Ne6 {[%clk 0:01:01]} 29. Nd2 {[%clk 0:01:25]}  Nd7 {[%clk 0:01:00]} 30. Nc4 {[%clk 0:01:26]}  c5 {[%clk 0:00:54]} 31. Nd6 {[%clk 0:01:24]}  Rb8 {[%clk 0:00:55]} 32. Rb1 {[%clk 0:01:13]}  Ne5 {[%clk 0:00:54]} 33. b5 {[%clk 0:01:12]}  axb5 {[%clk 0:00:54]} 34. Rxb5 {[%clk 0:01:12]}  Rd7 {[%clk 0:00:52]} 35. Rb6 {[%clk 0:01:04]}  Nc6 {[%clk 0:00:52]} 36. Nc4 {[%clk 0:00:57]}  Ra8 {[%clk 0:00:44]} 37. Ra1 {[%clk 0:00:55]}  Kf8 {[%clk 0:00:37]} 38. a6 {[%clk 0:00:55]}  Ned8 {[%clk 0:00:33]} 39. Ra3 {[%clk 0:00:39]}  Rxa6 {[%clk 0:00:33]} 40. Raxa6 {[%clk 0:00:39]}  bxa6 {[%clk 0:00:33]} 41. Rxa6 {[%clk 0:00:40]}  Ke7 {[%clk 0:00:33]} 42. h4 {[%clk 0:00:40]}  f6 {[%clk 0:00:33]} 43. Nf4 {[%clk 0:00:39]}  Rb7 {[%clk 0:00:31]} 44. Nd5+ {[%clk 0:00:39]}  Ke6 {[%clk 0:00:30]} 45. f4 {[%clk 0:00:32]}  f5 {[%clk 0:00:28]} 46. Kf3 {[%clk 0:00:30]}  Rb1 {[%clk 0:00:23]} 47. g4 {[%clk 0:00:30]}  fxe4+ {[%clk 0:00:24]} 48. Kxe4 {[%clk 0:00:30]}  Re1+ {[%clk 0:00:24]} 49. Nde3 {[%clk 0:00:30]}  Rc1 {[%clk 0:00:20]} 50. f5+ {[%clk 0:00:31]}  gxf5+ {[%clk 0:00:20]} 51. gxf5+ {[%clk 0:00:31]}  Ke7 {[%clk 0:00:21]} 52. Nd5+ {[%clk 0:00:31]}  Kf8 {[%clk 0:00:20]} 53. f6 {[%clk 0:00:21]}  Rh1 {[%clk 0:00:20]} 54. Nd6 {[%clk 0:00:16]}  Rxh4+ {[%clk 0:00:21]} 55. Ke3 {[%clk 0:00:16]}  Rh5 {[%clk 0:00:20]} 56. c4 {[%clk 0:00:16]}  Re5+ {[%clk 0:00:19]} 57. Kf4 {[%clk 0:00:16]}  Re6 {[%clk 0:00:19]} 58. Ne4 {[%clk 0:00:17]}  Nd4 {[%clk 0:00:19]} 59. Ra8 {[%clk 0:00:16]}  Ne2+ {[%clk 0:00:18]} 60. Ke3 {[%clk 0:00:14]}  Ng3 {[%clk 0:00:15]} 61. Rxd8+ {[%clk 0:00:14]}  Kf7 {[%clk 0:00:15]} 62. Rd7+ {[%clk 0:00:15]}  Kf8 {[%clk 0:00:15]} 63. Nc3 {[%clk 0:00:15]}  Nf5+ {[%clk 0:00:15]} 64. Kf4 {[%clk 0:00:15]}  Nd4 {[%clk 0:00:15]} 65. Rxh7 {[%clk 0:00:15]}  Ra6 {[%clk 0:00:14]} 66. Nd5 {[%clk 0:00:15]}  Kg8 {[%clk 0:00:13]} 67. Rg7+ {[%clk 0:00:15]}  Kh8 {[%clk 0:00:13]} 68. Rb7 {[%clk 0:00:13]}  Ne6+ {[%clk 0:00:13]} 69. Ke5 {[%clk 0:00:13]}  Nd4 {[%clk 0:00:12]} 70. Rb8+ {[%clk 0:00:13]}  Kh7 {[%clk 0:00:12]} 71. Ng5+ {[%clk 0:00:14]}  Kg6 {[%clk 0:00:12]} 72. Rg8+ {[%clk 0:00:14]}  Kh5 {[%clk 0:00:12]} 73. f7 {[%clk 0:00:14]}  Nc6+ {[%clk 0:00:11]} 74. Ke4 {[%clk 0:00:14]}  Ne7 {[%clk 0:00:07]} 75. f8=Q {[%clk 0:00:12]}  Nxg8 {[%clk 0:00:07]} 76. Qxg8 {[%clk 0:00:12]}  Kh4 {[%clk 0:00:07]} 77. Nf3+ {[%clk 0:00:12]}  Kh5 {[%clk 0:00:06]} 78. Nf4+ {[%clk 0:00:12]}  Kh6 {[%clk 0:00:05]} 79. Ne5 {[%clk 0:00:09]}  Rf6 {[%clk 0:00:04]} 80. Ng4# {[%clk 0:00:01]} 1-0

[Event "December 19 Late 2023"]
[Site "https://www.chess.com"]
[Date "2023.12.19"]
[Round "1"]
[White "mightysmasher"]
[Black "Kovalev, Vladislav"]
[Result "0-1"]
[Board "30"]
[TimeControl "180+1"]
[BlackFideId "13504398"]
[WhiteElo "2476"]
[BlackElo "2539"]
[BlackTeam "FID"]
[WhiteClock "0:00:09"]
[BlackClock "0:00:18"]

1. e4 {[%clk 0:02:49]}  e5 {[%clk 0:02:54]} 2. Nf3 {[%clk 0:02:49]}  Nc6 {[%clk 0:02:54]} 3. d4 {[%clk 0:02:48]}  exd4 {[%clk 0:02:55]} 4. Nxd4 {[%clk 0:02:48]}  Qf6 {[%clk 0:02:55]} 5. Be3 {[%clk 0:02:47]}  Bc5 {[%clk 0:02:55]} 6. c3 {[%clk 0:02:47]}  Nge7 {[%clk 0:02:52]} 7. Bc4 {[%clk 0:02:47]}  Ne5 {[%clk 0:02:34]} 8. Be2 {[%clk 0:02:45]}  Qg6 {[%clk 0:02:34]} 9. O-O {[%clk 0:02:42]}  O-O {[%clk 0:02:08]} 10. Nd2 {[%clk 0:02:40]}  d5 {[%clk 0:01:40]} 11. f3 {[%clk 0:02:35]}  Bb6 {[%clk 0:01:27]} 12. Rc1 {[%clk 0:02:11]}  Bh3 {[%clk 0:01:13]} 13. Rf2 {[%clk 0:02:08]}  dxe4 {[%clk 0:01:14]} 14. Nxe4 {[%clk 0:02:06]}  Nd5 {[%clk 0:01:14]} 15. Bd2 {[%clk 0:01:43]}  Rad8 {[%clk 0:01:14]} 16. Kh1 {[%clk 0:01:34]}  Bf5 {[%clk 0:01:10]} 17. Ng3 {[%clk 0:01:27]}  Bc8 {[%clk 0:01:03]} 18. Rf1 {[%clk 0:01:18]}  Rfe8 {[%clk 0:00:56]} 19. f4 {[%clk 0:01:12]}  Nc6 {[%clk 0:00:42]} 20. f5 {[%clk 0:01:00]}  Qf6 {[%clk 0:00:42]} 21. Nh5 {[%clk 0:00:55]}  Qh4 {[%clk 0:00:42]} 22. Be1 {[%clk 0:00:33]}  Qg5 {[%clk 0:00:37]} 23. Bd2 {[%clk 0:00:19]}  Ne3 {[%clk 0:00:37]} 24. Bxe3 {[%clk 0:00:18]}  Qxe3 {[%clk 0:00:37]} 25. Rf3 {[%clk 0:00:17]}  Qe5 {[%clk 0:00:36]} 26. Rg3 {[%clk 0:00:16]}  g6 {[%clk 0:00:34]} 27. fxg6 {[%clk 0:00:14]}  hxg6 {[%clk 0:00:34]} 28. Bd3 {[%clk 0:00:14]}  Rd6 {[%clk 0:00:26]} 29. Nxc6 {[%clk 0:00:12]}  bxc6 {[%clk 0:00:26]} 30. h3 {[%clk 0:00:10]}  Bf5 {[%clk 0:00:16]} 31. Qf1 {[%clk 0:00:03]}  Bxd3 {[%clk 0:00:15]} 32. Rxd3 {[%clk 0:00:03]}  Qxh5 {[%clk 0:00:15]} 33. Rxd6 {[%clk 0:00:03]}  cxd6 {[%clk 0:00:16]} 34. Rd1 {[%clk 0:00:04]}  d5 {[%clk 0:00:16]} 35. Rd3 {[%clk 0:00:03]}  Qe2 {[%clk 0:00:16]} 36. Rd1 {[%clk 0:00:03]}  Qxf1+ {[%clk 0:00:16]} 37. Rxf1 {[%clk 0:00:04]}  Re2 {[%clk 0:00:17]} 38. Rb1 {[%clk 0:00:05]}  a5 {[%clk 0:00:16]} 39. a4 {[%clk 0:00:06]}  c5 {[%clk 0:00:16]} 40. b4 {[%clk 0:00:06]}  axb4 {[%clk 0:00:16]} 41. cxb4 {[%clk 0:00:07]}  c4 {[%clk 0:00:17]} 42. a5 {[%clk 0:00:07]}  Bc7 {[%clk 0:00:17]} 43. a6 {[%clk 0:00:07]}  Bb6 {[%clk 0:00:18]} 44. Rd1 {[%clk 0:00:07]}  d4 {[%clk 0:00:17]} 45. b5 {[%clk 0:00:07]}  d3 {[%clk 0:00:17]} 46. Ra1 {[%clk 0:00:07]}  d2 {[%clk 0:00:18]} 47. a7 {[%clk 0:00:07]}  Re1+ {[%clk 0:00:18]} 48. Rxe1 {[%clk 0:00:07]}  dxe1=Q+ {[%clk 0:00:18]} 49. Kh2 {[%clk 0:00:08]}  Bg1+ {[%clk 0:00:16]} 50. Kh1 {[%clk 0:00:08]}  Bf2+ {[%clk 0:00:17]} 51. Kh2 {[%clk 0:00:09]}  Bg3# {[%clk 0:00:18]} 0-1